Cogmind - Beta 12 @@@ ROGUE MODE // 2023.11.02 @ 15:06:11 Player: Russmatros Result: Self-destructed Performance ------------- Evolutions (5) 2500 Regions Visited (9) 1800 Robots Destroyed (18) 90 Value Destroyed (391) 391 Prototype IDs (26) 520 Alien Tech Used (0) 0 Bonus (492) 492 TOTAL SCORE: 5793 Bonus ------- Pacifist 200 Aligned with FarCom 300 Friendly Fire -8 Cogmind --------- Core Integrity 993/1000 Matter 113/300 Energy 375/900 System Corruption 1% Temperature Cool (0) Movement Flying (44) Location -5/Factory Parts ------- > --- POWER (2) -------- Hybrid Fission Core Fusion Compressor > --- PROPULSION (5) --- Field Propulsion Drive Flying Fortress v7 > --- UTILITY (8) ------ Improved Sensor Array Improved Signal Interpreter Advanced Terrain Scan Processor Improved Medium Armor Plating Force Field System Restoration Module > --- WEAPON (2) ------- Improved Lightning Gun Improved EM Pulse Cannon > --- INVENTORY (5) ---- Advanced ECM Suite Remote Datajack Peak State ------------ > --- POWER ------------ Hybrid Fission Core Fusion Compressor > --- PROPULSION ------- Field Propulsion Drive Flying Fortress v7 > --- UTILITY ---------- Improved Sensor Array Improved Signal Interpreter Advanced Terrain Scan Processor Improved Reaction Control System Improved Medium Armor Plating Force Field System Restoration Module > --- WEAPON ----------- Improved Lightning Gun Improved EM Pulse Cannon > --- INVENTORY -------- Advanced ECM Suite Remote Datajack [Rating: 86] Favorites ----------- Power Light Nuclear Core Engine Light Deuterium Engine Power Core Light Nuclear Core Propulsion Aluminum Leg Leg Aluminum Leg Flight Unit Flying Fortress v7 Utility Terrain Scan Processor Device Improved Sensor Array Processor Terrain Scan Processor Protection Light Armor Plating Weapon Assault Rifle Energy Gun Improved EM Shotgun Energy Cannon Heavy Ion Cannon Ballistic Gun Assault Rifle Ballistic Cannon Advanced Assault Cannon Special Weapon Remote Datajack Build | -11 -10 -9 -9 -9 -8 -8 -7 -6 -5 ------- Run | Jun Mat Mat Min Exi Min Mat Fac Fac Fac Slots Evolved 10 | . . 2 . . . 2 2 2 2 Power 1 | . . . . . . . 1 . . Propulsion 3 | . . . . . . 2 . . 1 Utility 6 | . . 2 . . . . 1 2 1 Weapon . | . . . . . . . . . . Parts Attached 50 | 5 . 5 . . . 7 15 12 6 Power 10 | 1 . 1 . . . . 4 4 . Engine 3 | 1 . . . . . . 1 1 . Core 7 | . . 1 . . . . 3 3 . Reactor . | . . . . . . . . . . Propulsion 5 | 2 . . . . . 1 . . 2 Treads . | . . . . . . . . . . Leg 2 | 2 . . . . . . . . . Wheel . | . . . . . . . . . . Hover . | . . . . . . . . . . Flight 3 | . . . . . . 1 . . 2 Utility 22 | . . 4 . . . 4 6 7 1 Device 10 | . . . . . . 1 4 4 1 Storage . | . . . . . . . . . . Processor 7 | . . 2 . . . 3 1 1 . Hackware . | . . . . . . . . . . Protection 5 | . . 2 . . . . 1 2 . Artifact . | . . . . . . . . . . Weapon 13 | 2 . . . . . 2 5 1 3 Energy Gun 3 | . . . . . . 1 . . 2 Energy Cannon 5 | . . . . . . . 4 . 1 Ballistic Gun 3 | 2 . . . . . 1 . . . Ballistic Cannon 1 | . . . . . . . 1 . . Launcher . | . . . . . . . . . . Special Weapon 1 | . . . . . . . . 1 . Impact Weapon . | . . . . . . . . . . Slashing Weapon . | . . . . . . . . . . Piercing Weapon . | . . . . . . . . . . Special Melee Weapon . | . . . . . . . . . . Unidentified Prototypes 3 | . . . . . . 1 . . 2 Parts Lost 3 | . . . . . . . . 2 1 Power . | . . . . . . . . . . Propulsion . | . . . . . . . . . . Utility 3 | . . . . . . . . 2 1 Weapon . | . . . . . . . . . . Highest Loss Streak 1 | . . . . . . . . 1 1 To Critical Strikes . | . . . . . . . . . . Average Slot Usage (%) 83 | . 71 95 100 100 100 72 74 73 73 Engine 2 | . 14 10 . . . . 6 1 . Core 9 | . . . 11 11 11 9 7 11 11 Leg 9 | . 28 22 22 22 22 . . . . Flight 4 | . . . . . . 9 7 6 11 Device 9 | . . . . . . 6 18 19 20 Processor 18 | . . 20 22 22 22 24 15 16 11 Protection 10 | . . 19 22 22 22 5 2 4 5 Energy Gun 1 | . . . . . . 8 . . 3 Energy Cannon 4 | . . . . . . . 12 8 4 Ballistic Gun 10 | . 28 22 22 22 22 9 . . . Naked Turns . | . . . . . . . . . . Heaviest Build 52 | 8 8 14 14 14 14 16 36 52 43 Greatest Support 57 | 20 20 20 20 20 20 50 50 50 57 Greatest Overweight (x) 1 | 1 . . . . . . . 1 . Average Overweight (x) . | . . . . . . . . . . Largest Inventory Capacity 5 | 5 5 5 5 5 5 5 5 5 5 Average Capacity 5 | 5 5 5 5 5 5 5 5 5 5 Most Carried 5 | 2 . 1 . 4 4 4 5 5 3 Average Carried 2 | . . . . . 4 2 4 3 2 Final Capacity 5 | 5 5 5 5 5 5 5 5 5 5 Final Carried 5 | . . . . 4 4 4 5 3 2 Class Distribution -------------------- 53% | Scout 46% | Mutant Dominant Class ---------------- Mutant | -10/Materials Mutant | -9/Materials Mutant | -9/Mines Mutant | -9/Exiles Mutant | -8/Mines Scout | -8/Materials Scout | -7/Factory Scout | -6/Factory Scout | -5/Factory Resources | -11 -10 -9 -9 -9 -8 -8 -7 -6 -5 ----------- Run | Jun Mat Mat Min Exi Min Mat Fac Fac Fac Matter Collected 749 | 235 . 96 41 . 12 26 46 293 . Remotely . | . . . . . . . . . . Salvage Created 481 | . . 96 66 . 20 26 31 202 40 Parts 39 | . . 6 7 . 6 3 2 15 . Haulers Intercepted . | . . . . . . . . . . Recyclers Shooed . | . . . . . . . . . . Parts Field Recycled . | . . . . . . . . . . Retrieved Matter . | . . . . . . . . . . Parts Self-Destructed . | . . . . . . . . . . Prevented . | . . . . . . . . . . Kills | -11 -10 -9 -9 -9 -8 -8 -7 -6 -5 ------- Run | Jun Mat Mat Min Exi Min Mat Fac Fac Fac Combat Hostiles Destroyed 11 | . . 2 4 . 2 . . 3 . Guns 8 | . . 2 4 . 2 . . . . Cannons 2 | . . . . . . . . 2 . AOE 1 | . . . . . . . . 1 . Classes Destroyed 7 | . . 1 1 . . 1 . 4 . Worker 2 | . . . . . . . . 2 . Tunneler 1 | . . . . . . . . 1 . Operator 1 | . . . . . . . . 1 . Watcher 3 | . . . . . . 1 1 . 1 Swarmer 8 | . . . 4 . 2 . . 2 . Grunt 2 | . . 2 . . . . . . . Hunter 1 | . . . . . . . . 1 . Best Kill Streak 6 | . . 2 6 . 2 1 1 2 1 Combat Bots Only 6 | . . 2 6 . 2 . . 2 . Max Kills in Single Turn 1 | . . 1 1 . 1 1 1 1 1 Gunslinging . | . . . . . . . . . . Exploded 1 | . . . . . . . . 1 . Melee . | . . . . . . . . . . Uniques/NPCs Destroyed . | . . . . . . . . . . Combat | -11 -10 -9 -9 -9 -8 -8 -7 -6 -5 -------- Run | Jun Mat Mat Min Exi Min Mat Fac Fac Fac Damage Taken 1303 | . 10 106 194 . 18 31 247 646 51 Core 171 | . . 60 19 . 6 . . 79 7 Absorbed by Shields 285 | . . . . . . . 8 223 54 Core Remaining (%) 94 | 100 100 . . . 78 100 100 90 . Volleys Fired 66 | . . 8 10 . 3 4 11 27 3 Largest 2 | . . 2 2 . 2 2 2 2 1 Hottest 134 | . . 40 40 . 40 65 134 134 69 Shots Fired 113 | . . 16 20 . 6 8 22 38 3 Gun 50 | . . 16 20 . 6 8 . . . Cannon 59 | . . . . . . . 22 34 3 Launcher . | . . . . . . . . . . Special 4 | . . . . . . . . 4 . Kinetic 46 | . . 16 20 . 6 4 . . . Thermal 32 | . . . . . . . 21 11 . Explosive . | . . . . . . . . . . Electromagnetic 31 | . . . . . . 4 1 23 3 Robot Hit Streak 8 | . . 8 3 . 2 3 2 6 4 Robot Miss Streak 11 | . . 2 3 . 1 7 11 2 1 Penetration Max . | . . . . . . . . . . Secondary Targets 1 | . . . 1 . . . . . . Max Gunslinging Chain 1 | . . . 1 . . . . . . Shots Hit Robots 51 | . . 11 10 . 3 3 5 17 2 Core Hits 21 | . . 4 5 . 3 2 1 6 . Critical Kills 1 | . . 1 . . . . . . . Critical Parts Destroyed . | . . . . . . . . . . Critical Strikes 3 | . . 1 . . . . . 1 1 Destroy 1 | . . 1 . . . . . . . Corrupt 2 | . . . . . . . . 1 1 Melee Attacks . | . . . . . . . . . . Impact . | . . . . . . . . . . Slashing . | . . . . . . . . . . Piercing . | . . . . . . . . . . Sneak Attacks . | . . . . . . . . . . Combat Hostiles . | . . . . . . . . . . Follow-up Attacks . | . . . . . . . . . . Damage Inflicted 1087 | . . 111 137 . 49 51 142 499 98 Guns 348 | . . 111 137 . 49 51 . . . Cannons 659 | . . . . . . . 142 419 98 Explosions 80 | . . . . . . . . 80 . Melee . | . . . . . . . . . . Ramming . | . . . . . . . . . . Kinetic 310 | . . 111 137 . 49 13 . . . Thermal 275 | . . . . . . . 142 133 . Explosive . | . . . . . . . . . . Electromagnetic 502 | . . . . . . 38 . 366 98 Impact . | . . . . . . . . . . Slashing . | . . . . . . . . . . Piercing . | . . . . . . . . . . Highest Corruption 3 | . . . . . . . 1 . 3 Average Corruption 1 | . . . . . . . 1 . 1 Corruption Purged 2 | . . . . . . . . . 2 Corruption Blocked . | . . . . . . . . . . Overload Shots . | . . . . . . . . . . Overflow Damage 76 | . . . . . . . 11 39 26 Projectiles 76 | . . . . . . . 11 39 26 Explosions . | . . . . . . . . . . Melee . | . . . . . . . . . . Knockbacks . | . . . . . . . . . . Impact . | . . . . . . . . . . Kinetic . | . . . . . . . . . . Secondary . | . . . . . . . . . . Self-Inflicted Damage 93 | . . . . . . . . 93 . Shots 2 | . . . . . . . . 2 . Rammed . | . . . . . . . . . . Targets Rammed . | . . . . . . . . . . Kicked . | . . . . . . . . . . Crushed . | . . . . . . . . . . Highest Temperature 328 | . . 25 20 . 10 31 328 286 48 Average Temperature 80 | . . 11 8 . 7 12 122 84 25 Received Heat Transfer 141 | . 6 60 . . . 9 27 39 . Effects 1 | . . . . . . . 1 . . Shutdowns 1 | . . . . . . . 1 . . Siege Activations . | . . . . . . . . . . Robots Corrupted 1 | . . . . . . . . . 1 Combat Hostiles . | . . . . . . . . . . Parts Fried 4 | . . . . . . . . 3 1 Impact Corruptions . | . . . . . . . . . . Robots Melted . | . . . . . . . . . . Combat Hostiles . | . . . . . . . . . . Parts Melted . | . . . . . . . . . . Heat Transferred 359 | . . . . . . . 185 174 . Parts Sabotaged . | . . . . . . . . . . Parts Stolen . | . . . . . . . . . . Parts Stripped . | . . . . . . . . . . Power Chain Reactions 2 | . . . . . . . . 2 . Missiles Intercepted . | . . . . . . . . . . Alert | -11 -10 -9 -9 -9 -8 -8 -7 -6 -5 ------- Run | Jun Mat Mat Min Exi Min Mat Fac Fac Fac Peak Influence 405 | . 15 55 111 . 50 150 126 405 235 Initial 198 | . . 5 21 . . 19 67 7 198 Average 86 | . 5 12 91 . 47 72 78 113 218 Maximum Alert Level 2 | . . . . . . . . 2 1 Low Security (%) 86 | 100 100 100 100 . 100 100 100 76 10 Level 1 12 | . . . . . . . . 21 89 Level 2 . | . . . . . . . . 2 . Level 3 . | . . . . . . . . . . Level 4 . | . . . . . . . . . . Level 5 . | . . . . . . . . . . High Security . | . . . . . . . . . . Max Security . | . . . . . . . . . . Squads Dispatched 7 | . 2 . . . . . . 5 . Investigation 2 | . 1 . . . . . . 1 . Extermination 1 | . . . . . . . . 1 . Reinforcement 4 | . 1 . . . . . . 3 . Assault . | . . . . . . . . . . Garrison . | . . . . . . . . . . Intercept . | . . . . . . . . . . Searches Triggered . | . . . . . . . . . . Construction Impeded 1 | . . . . . . . . 1 . Haulers Reinforced . | . . . . . . . . . . Active Scanning Responses . | . . . . . . . . . . Cargo Convoy Interrupts . | . . . . . . . . . . Stealth | -11 -10 -9 -9 -9 -8 -8 -7 -6 -5 --------- Run | Jun Mat Mat Min Exi Min Mat Fac Fac Fac Distress Signals 2 | . . . . . . . 1 1 . Communications Jammed . | . . . . . . . . . . Distress Signals . | . . . . . . . . . . Times Spotted 54 | . 3 3 4 . 2 6 10 23 3 Peak Tracking Total 8 | . 3 3 4 . 1 3 8 8 2 Tactical Retreats 7 | . . . . . . 2 . 5 . Traps | -11 -10 -9 -9 -9 -8 -8 -7 -6 -5 ------- Run | Jun Mat Mat Min Exi Min Mat Fac Fac Fac Traps Triggered 4 | . 1 . . . . . 2 1 . Indirectly . | . . . . . . . . . . Trap Hack Attempts . | . . . . . . . . . . Triggered . | . . . . . . . . . . Disarmed . | . . . . . . . . . . Reprogrammed 6 | . . . . . . . . 6 . Reused 3 | . . . . . . . . 3 . Traps Extracted . | . . . . . . . . . . Installed . | . . . . . . . . . . Triggered 3 | . . . . . . . . 3 . Machines | -11 -10 -9 -9 -9 -8 -8 -7 -6 -5 ---------- Run | Jun Mat Mat Min Exi Min Mat Fac Fac Fac Machines Disabled 3 | . . . . . . 1 . 2 . Max in Single Turn 1 | . . . . . . 1 . 1 . Garrison Access 1 | . . . . . . . . 1 . Machines Repaired . | . . . . . . . . . . Machines Sabotaged . | . . . . . . . . . . Overloaded Fab Kills . | . . . . . . . . . . Hacking | -11 -10 -9 -9 -9 -8 -8 -7 -6 -5 --------- Run | Jun Mat Mat Min Exi Min Mat Fac Fac Fac Machines Accessed 18 | . 1 . . 4 . 2 4 7 . Terminals 13 | . 1 . . . . 2 4 6 . Fabricators . | . . . . . . . . . . Repair Stations . | . . . . . . . . . . Recycling Units . | . . . . . . . . . . Scanalyzers . | . . . . . . . . . . Garrison Access 1 | . . . . . . . . 1 . Total Hacks 58 | . 3 . . 29 . 3 6 17 . Successful 44 | . 1 . . 29 . 3 2 9 . Failed 14 | . 2 . . . . . 4 8 . Catastrophic 3 | . 1 . . . . . 1 1 . Database Lockouts . | . . . . . . . . . . Manual 14 | . 1 . . 6 . . . 7 . Terminals 27 | . 3 . . . . 3 6 15 . Fabricators . | . . . . . . . . . . Repair Stations . | . . . . . . . . . . Recycling Units . | . . . . . . . . . . Scanalyzers . | . . . . . . . . . . Garrison Access 2 | . . . . . . . . 2 . Terminal Hacks 43 | . 1 . . 29 . 3 2 8 . Record 32 | . . . . 28 . 2 1 1 . Open DSF 2 | . . . . . . . . 2 . Alert Level 5 | . 1 . . . . 1 1 2 . Locate Traps 2 | . . . . . . . . 2 . Reprogram Traps 1 | . . . . . . . . 1 . EX-Prototype ID Bank 1 | . . . . 1 . . . . . Fabricator Hacks . | . . . . . . . . . . Repair Station Hacks . | . . . . . . . . . . Recycling Unit Hacks . | . . . . . . . . . . Scanalyzer . | . . . . . . . . . . Garrison Access Hacks . | . . . . . . . . . . Unauthorized Hacks 1 | . . . . . . . . 1 . Terminals . | . . . . . . . . . . Fabricators . | . . . . . . . . . . Repair Stations . | . . . . . . . . . . Recycling Units . | . . . . . . . . . . Scanalyzers . | . . . . . . . . . . Garrison Access 1 | . . . . . . . . 1 . Jam 1 | . . . . . . . . 1 . Data Cores Recovered 1 | . . . . . . . . 1 . Used 1 | . . . . . . . . 1 . Hacking Detections 8 | . 1 . . . . . 3 4 . Full Trace Events 1 | . 1 . . . . . . . . Feedback Events . | . . . . . . . . . . Feedback Blocked . | . . . . . . . . . . Robot Schematics Acquired . | . . . . . . . . . . Robots Built . | . . . . . . . . . . Authchips . | . . . . . . . . . . Time . | . . . . . . . . . . Total Robot Build Rating . | . . . . . . . . . . Part Schematics Acquired . | . . . . . . . . . . Parts Built . | . . . . . . . . . . Authchips . | . . . . . . . . . . Time . | . . . . . . . . . . Total Part Build Rating . | . . . . . . . . . . Parts Repaired . | . . . . . . . . . . Time . | . . . . . . . . . . Parts Recycled . | . . . . . . . . . . Recycled Matter . | . . . . . . . . . . Retrieved Matter . | . . . . . . . . . . Retrieved Components . | . . . . . . . . . . Parts Scanalyzed . | . . . . . . . . . . Part Schematics Acquired . | . . . . . . . . . . Parts Damaged . | . . . . . . . . . . Bothacking | -11 -10 -9 -9 -9 -8 -8 -7 -6 -5 ------------ Run | Jun Mat Mat Min Exi Min Mat Fac Fac Fac Used RIF Installer . | . . . . . . . . . . Robots Hacked 2 | . . . . . . . . 2 . Non-combat . | . . . . . . . . . . Combat 2 | . . . . . . . . 2 . Robot Hacks Applied 2 | . . . . . . . . 2 . parse_system 2 | . . . . . . . . 2 . Relay Couplers Released . | . . . . . . . . . . Fabnet Peak Effective % . | . . . . . . . . . . Robots Rewired . | . . . . . . . . . . Allies Hacked . | . . . . . . . . . . Hacks Repelled . | . . . . . . . . . . Allies | -11 -10 -9 -9 -9 -8 -8 -7 -6 -5 -------- Run | Jun Mat Mat Min Exi Min Mat Fac Fac Fac Total Allies . | . . . . . . . . . . Largest Group . | . . . . . . . . . . Highest-Rated Group . | . . . . . . . . . . Highest-Rated Ally . | . . . . . . . . . . Total Orders . | . . . . . . . . . . Ally Attacks . | . . . . . . . . . . Total Damage . | . . . . . . . . . . Kills . | . . . . . . . . . . Allies Corrupted . | . . . . . . . . . . Allies Melted . | . . . . . . . . . . Intel | -11 -10 -9 -9 -9 -8 -8 -7 -6 -5 ------- Run | Jun Mat Mat Min Exi Min Mat Fac Fac Fac Robot Analysis Total . | . . . . . . . . . . Derelict Logs Recovered . | . . . . . . . . . . Drone Launches . | . . . . . . . . . . Drone Recoveries . | . . . . . . . . . . Exploration | -11 -10 -9 -9 -9 -8 -8 -7 -6 -5 ------------- Run | Jun Mat Mat Min Exi Min Mat Fac Fac Fac Turns Passed 2808 | 52 118 141 52 796 53 322 412 759 103 Spaces Moved 3413 | 31 99 82 21 658 38 417 648 1214 205 Core 6 | 6 . . . . . . . . . Treads . | . . . . . . . . . . Legs 923 | 25 99 82 21 658 38 . . . . Wheels . | . . . . . . . . . . Hover . | . . . . . . . . . . Flight 2484 | . . . . . . 417 648 1214 205 Fastest Speed 39 | 50 120 120 120 120 120 50 50 50 39 Average Speed 68 | 111 120 120 120 120 120 50 50 50 40 Slowest Speed 150 | 120 120 120 120 120 120 50 50 150 44 Overloaded Moves . | . . . . . . . . . . Propulsion Burnouts . | . . . . . . . . . . Robots Hopped 7 | . . . . . . . 4 3 . Cave-ins Triggered . | . . . . . . . . . . Exploration Rate (%) 22 | 3 22 10 13 76 14 27 25 28 5 Regions Visited 9 Branch Regions 3 Pre-discovered Areas 1 | . . . . 1 . . . . . Known Exits Taken 2 | . . . . . . . 1 1 . Unknown Exits Taken 7 | 1 1 1 1 1 1 1 . . . Scrap Searched . | . . . . . . . . . . Spaces Dug 5 | . . . . . . . 4 1 . Terrain Destroyed 19 | . . . . . . . 7 12 . Melee . | . . . . . . . . . . Projectile 9 | . . . . . . . 7 2 . AOE 10 | . . . . . . . . 10 . Terrain Rammed . | . . . . . . . . . . Walls Destroyed . | . . . . . . . . . . Machines Disabled . | . . . . . . . . . . Actions | -11 -10 -9 -9 -9 -8 -8 -7 -6 -5 --------- Run | Jun Mat Mat Min Exi Min Mat Fac Fac Fac Total 3762 | 48 98 108 30 664 40 523 712 1317 222 Wait 181 | 8 . 12 . 5 . 80 18 54 4 Move 3392 | 30 98 81 20 657 37 416 641 1207 205 Hop 5 | . . . . . . . 2 3 . Pick Up 26 | 5 . 1 . 1 . 8 9 2 . Fast Attach 24 | . . 4 . . . 2 4 11 3 Attach 18 | 5 . . . . . 3 6 1 3 Detach 6 | . . . . . . . 4 . 2 Swap 8 | . . 1 . . . 2 5 . . Drop 32 | . . 1 . . . 8 9 12 2 Fire 66 | . . 8 10 . 3 4 11 27 3 Melee . | . . . . . . . . . . Ram . | . . . . . . . . . . Kick . | . . . . . . . . . . Crush . | . . . . . . . . . . Escape Stasis 3 | . . . . . . . 3 . . Rewire 1 | . . . . 1 . . . . . Trap . | . . . . . . . . . . Miscellaneous . | . . . . . . . . . . Route ------- -11/Junkyard -10/Materials -9/Materials -9/Mines -9/Exiles (discovered 2 exits: [*Min x2]) -8/Mines -8/Materials -7/Factory -6/Factory -5/Factory History --------- Turn | Location | Event 16 | -11/Junkyard | Discovered new exit (range 16) 53 | -11/Junkyard | Entered Materials 154 | -10/Materials | Discovered new exit (range 15) 171 | -10/Materials | Entered another Materials area 171 | -9/Materials | Evolved 2 slots: Utility x2 260 | -9/Materials | Discovered new exit (range 16) 312 | -9/Materials | Entered Mines 324 | -9/Mines | Build established: Mutant 360 | -9/Mines | Deemed a non-threat by the Exiles lab entrance 360 | -9/Mines | Discovered new exit (range 5) 364 | -9/Mines | Entered Exiles 390 | -9/Exiles | Discovered new exit (range 14) 416 | -9/Exiles | Met 8R-AWN 439 | -9/Exiles | Met EX-HEX 523 | -9/Exiles | Met EX-DEC 609 | -9/Exiles | Learned location of Zion (-7) 675 | -9/Exiles | Discovered new exit (range 11) 858 | -9/Exiles | Met EX-BIN 973 | -9/Exiles | Aligned with FarCom system 974 | -9/Exiles | Given EX-Vault access code 1002 | -9/Exiles | Opened EX-Vault 1020 | -9/Exiles | Found Flying Fortress v7 1052 | -9/Exiles | Exiles lab attacked by MAIN.C 1160 | -9/Exiles | Left Exiles lab with Flying Fortress v7 1160 | -9/Exiles | Entered Mines 1200 | -8/Mines | Discovered new exit (range 11) 1213 | -8/Mines | Entered Materials 1213 | -8/Materials | Evolved 2 slots: Propulsion x2 1518 | -8/Materials | Discovered new exit (range 17) 1535 | -8/Materials | Entered Factory 1535 | -7/Factory | Evolved 2 slots: Power x1, Utility x1 1630 | -7/Factory | Build established: Scout 1904 | -7/Factory | Discovered new exit (range 18) 1947 | -7/Factory | Identified exit to Factory 1947 | -7/Factory | Entered another Factory area 1947 | -6/Factory | Evolved 2 slots: Utility x2 2704 | -6/Factory | Discovered new exit (range 5) 2705 | -6/Factory | Identified exit to Factory 2706 | -6/Factory | Entered another Factory area 2706 | -5/Factory | Evolved 2 slots: Propulsion x1, Utility x1 2809 | -5/Factory | Self-destructed Last Messages --------------- 02739_ Identified Imp. Lightning Gun. 02739_ Malfunction: System corrupted (+3). 02739_ K-01 Serf cleans the Nuclear Reactor. 02740_ Dropped Faulty Imp. Lightning Gun. 02741_ Acquired Imp. Lightning Gun. 02744_ K-01 Serf cleans the Nuclear Reactor. 02746_ System Restoration Module purges 1% system corruption (2%). 02746_ K-01 Serf cleans the Nuclear Reactor. 02775_ Dropped Imp. VTOL Module. 02776_ Acquired Field Propulsion Drive. 02794_ K-01 Serf cleans the Power Conduit. 02802_ System Restoration Module purges 1% system corruption (1%). 02802_ K-01 Serf cleans the Power Conduit. 02803_ ALERT: All DSF locations entering lockdown mode. 02803_ Penetrated by Slug. 02803_ Imp. Reaction Control System destroyed. 02805_ Slug penetrates Wall. 02809_ Penetrated by Slug. 02809_ Slug penetrates Wall. [Achievement: 5k Club] Map ----- +----------------------------------------------------+ | ???????????????????????????????# ??????????? | | ???????????????????????????????# ??????????? | | ???????????????????????????????# #??????????? | | ???????????????????????????????# #??????????? | | ????????????????????????????????? #??????????? | | ??????????????????????????????????# #??????????? | | ??????????????????????????????????# #?#######??? | | ??????????????????????????????????# #?# #??? | | ???????????????????????????????#### ### #??? | | ???????????????????????????????# #??? | | ???????????????????????????????# #??? | | ???????????????????????????????# #??? | | ???????????????????????????????# #??? | | ???????????????????????????????# #??? | | ???????????????????????????????# ########??? | | ??????????????????????########## #?????????? | | ??????????????????w?? ####??##### | | ???????????????????? h # ? # | | ???????????????o????? h # """" # | | ????????????????????? # """" # | | ????????????????????? # """" # | | ?????????????????######## # """" # | | ?????????????????# ?# # # | | ?????????????????# # # """" # | | ?????????????????# # # """" # | | ?????????????????# /@ + """" # | | ?????????????????# # # """" # | | ?????????????????# # # # | | ?????????????????# ?###k#### # """" # | | ?????????????????######???# #??# # """" # | | ??????????????????#########+#### # """" # | | ??????????????????# # # """" # | | ??????????????????# " " " " " # # # | | ????????????g?????# " " " " " # ########### | | ??????????????g???#! " " " " " # #?????????? | | ??????????????g???# " " " " " # #?????????? | | ??????????????g???# " " " " " # #?????????? | | ??????????????????# " " " " " # #?????????? | | ??????????????????# " " " " " + #?????????? | | ??????????????????# " " " " " # #?????????? | | ??????????????????# " " " " " # #?????????? | | ??????????????????# # #?????????? | | ??????????????????# # #?????????? | | ??????????????????#########+#### #?????????? | | ????????????????????????# ![ ###?###???? | | ????????????????????????# [ # ???? | | ????????????????????????# # ?? ? | | ??????????????????####### """ """ # """ """ # | | ???????????? """ """ # """ """ # | | ??????????????????####### """ """ # """ """ # | +----------------------------------------------------+ Best States ------------- Heat Dissipation 40 Energy Generation 31 Energy Capacity 1700 Matter Stores 300 Matter Capacity 300 Sight Range 22 Robot Scan Range 15 Terrain Scan Range 20 Terrain Scan Density 410 ECM Strength 2 Armor Coverage 450 Evasion (%) 72 Item Schematics ----------------- None Robot Schematics ------------------ None Fabricated ------------ Nothing Alien Tech Used ----------------- None Achievements -------------- 5k Club Cya! Omniscient Cartographer Challenges ------------ None Game ------ Seed UltimateHelicalShielding Manual? 0 Play Time 01:22:24 Cumulative 47.2 hours Start 2023.11.02 @ 02:12:20 End 2023.11.02 @ 15:06:11 Sessions 3 Manual Loads 0 Difficulty Rogue Special Mode None Game No. 47 Rogue 47 Adventurer 0 Explorer 0 Win Type - Total 0 Types 0/0/0/0/0/0/0/0/0 Lore% 42 Gallery% 41 Achievement% 17 Wizard Run 0 Options --------- ASCII 0 Keyboard 0 Movement Mouse Keybinds 0 Fullscreen 2 Font 24/Smallcaps Map View 76x50 Tactical HUD 1 Map Filters NONE Filters NONE Steam 1 RUN: 902721b0-3838-4a57-9b58-b130fbe9f531